Cogmind - Beta 16.1 @@@ ROGUE MODE // 2026.04.12 @ 23:17:21 Player: Soul Result: Destroyed self with Mini Grenade Launcher Performance ------------- Evolutions (0) 0 Regions Visited (3) 600 Robots Destroyed (17) 85 Value Destroyed (388) 388 Prototype IDs (0) 0 Alien Tech Used (0) 0 Bonus (-44) -44 TOTAL SCORE: 1029 Bonus ------- Friendly Fire -44 Cogmind --------- Core Integrity 0/250 Matter 166/300 Energy 250/250 System Corruption 10% Temperature Cool (0) Movement Core (400) Ox7 Location -10/Subcaves Parts ------- > --- POWER (1) -------- Ion Engine > --- PROPULSION (2) --- (None) > --- UTILITY (2) ------ Scrap Shield > --- WEAPON (2) ------- Mini Grenade Launcher > --- INVENTORY (5) ---- Ion Engine Seismic Detector Targeting Computer Assault Rifle Peak State ------------ > --- POWER ------------ Ion Engine > --- PROPULSION ------- Aluminum Leg Aluminum Leg > --- UTILITY ---------- Scrap Shield > --- WEAPON ----------- Light Cannon Mini Grenade Launcher > --- INVENTORY -------- Ion Engine Targeting Computer Assault Rifle [Rating: 10] Favorites ----------- Power Ion Engine Engine Ion Engine Propulsion Aluminum Leg Leg Aluminum Leg Utility Utility Shielding Device Seismic Detector Protection Utility Shielding Weapon Small Laser Energy Gun Small Laser Ballistic Cannon Light Cannon Launcher Mini Grenade Launcher Build | -11 -10 -10 -10 ------- Run | Yrd Mat Min Sub Slots Evolved . | . . . . Power . | . . . . Propulsion . | . . . . Utility . | . . . . Weapon . | . . . . Parts Attached 15 | . 8 6 1 Power 2 | . 2 . . Engine 2 | . 2 . . Core . | . . . . Reactor . | . . . . Propulsion 4 | . 2 2 . Treads . | . . . . Leg 4 | . 2 2 . Wheel . | . . . . Hover . | . . . . Flight . | . . . . Utility 5 | . 2 2 1 Device 2 | . . 2 . Storage . | . . . . Processor . | . . . . Hackware . | . . . . Protection 3 | . 2 . 1 Artifact . | . . . . Weapon 4 | . 2 2 . Energy Gun 2 | . 2 . . Energy Cannon . | . . . . Ballistic Gun . | . . . . Ballistic Cannon 1 | . . 1 . Launcher 1 | . . 1 . Special Weapon . | . . . . Impact Weapon . | . . . . Slashing Weapon . | . . . . Piercing Weapon . | . . . . Special Melee Weapon . | . . . . Unidentified Prototypes . | . . . . Parts Lost 9 | . 1 5 3 Power 1 | . 1 . . Propulsion 4 | . . 2 2 Utility 1 | . . 1 . Weapon 3 | . . 2 1 Highest Loss Streak 5 | . 1 5 3 To Critical Strikes . | . . . . Average Backups 3 | 2 3 3 4 Power . | . . 1 1 Propulsion . | 1 . . . Utility . | . . 1 2 Weapon 1 | 1 2 1 1 Tool/Special . | . . . . Unused Backups 4 | . 1 . 3 Power 1 | . . . 1 Propulsion 1 | . 1 . . Utility 1 | . . . 1 Weapon 1 | . . . 1 Tool/Special . | . . . . Average Slot Usage (%) 94 | . 95 95 86 Engine 13 | . 13 14 14 Leg 27 | . 27 25 28 Device 3 | . . 12 1 Protection 20 | . 24 14 14 Energy Gun 16 | . 27 1 . Ballistic Cannon 5 | . . 13 14 Launcher 5 | . . 13 14 Peak Build Rating 10 | . 7 8 10 Average Rating 7 | . 6 7 9 On Entrance 3 | . . 7 8 Avg Prop Armor Cover (%) . | . . . . Naked Turns . | . . . . Heaviest Build 27 | . 10 12 27 Greatest Support 20 | 3 20 20 20 Greatest Overweight (x) 7 | . . 3 7 Average Overweight (x) . | . . . 1 Largest Inventory Capacity 5 | 5 5 5 5 Average Capacity 5 | 5 5 5 5 Most Carried 5 | 5 5 5 5 Average Carried 3 | 2 3 3 3 Final Capacity 5 | 5 5 5 5 Final Carried 5 | 5 5 4 4 Class Distribution -------------------- 100% | Mutant Dominant Class ---------------- Mutant | -10/Materials Mutant | -10/Mines Mutant | -10/Subcaves Resources | -11 -10 -10 -10 ----------- Run | Yrd Mat Min Sub Matter Collected 345 | 171 104 70 . Remotely . | . . . . Salvage Created 490 | . 427 47 16 Parts 37 | . 27 8 2 Haulers Intercepted . | . . . . Recyclers Shooed . | . . . . Parts Field Recycled . | . . . . Retrieved Matter . | . . . . Parts Self-Destructed . | . . . . Prevented . | . . . . Parts Restored . | . . . . Kills | -11 -10 -10 -10 ------- Run | Yrd Mat Min Sub Combat Hostiles Destroyed 13 | . 11 2 . Guns 11 | . 11 . . AOE 2 | . . 2 . Classes Destroyed 6 | . 4 1 1 Builder 1 | . 1 . . Tunneler 1 | . . 1 . Watcher 2 | . 2 . . Swarmer 6 | . 6 . . Grunt 7 | . 5 2 . Artisan 1 | . . . 1 Best Kill Streak 7 | . 7 2 . Combat Bots Only 6 | . 6 1 . Max Kills in Single Turn 2 | . 2 2 1 Gunslinging . | . . . . Exploded 1 | . . 1 . Melee . | . . . . Uniques/NPCs Destroyed . | . . . . Combat | -11 -10 -10 -10 -------- Run | Yrd Mat Min Sub Hostile Shots Fired 85 | . 63 22 . Missed 20 | . 16 4 . Hits 65 | . 47 18 . Projectile 65 | . 47 18 . Critical Strikes 1 | . 1 . . Damage Taken 1004 | . 464 271 269 Core 257 | . 154 87 16 Absorbed by Shields . | . . . . Redirected to Shielding 53 | . 30 23 . Core Remaining (%) 100 | 100 . . . Volleys Fired 69 | . 42 11 16 Largest 2 | . 2 2 1 Hottest 80 | . 80 80 30 Shots Fired 118 | . 81 20 17 Gun 89 | . 81 8 . Cannon 19 | . . 4 15 Launcher 10 | . . 8 2 Special . | . . . . Kinetic 19 | . . 4 15 Thermal 44 | . 39 5 . Explosive 10 | . . 8 2 Electromagnetic 45 | . 42 3 . Robot Hit Streak 8 | . 8 3 1 Robot Miss Streak 4 | . 4 3 . Penetration Max . | . . . . Secondary Targets 1 | . 1 . . Max Gunslinging Chain 1 | . 1 . . Shots Hit Robots 52 | . 44 7 1 Core Hits 29 | . 21 5 3 Critical Kills . | . . . . Critical Parts Destroyed . | . . . . Critical Strikes . | . . . . Melee Attacks . | . . . . Impact . | . . . . Slashing . | . . . . Piercing . | . . . . Sneak Attacks . | . . . . Combat Hostiles . | . . . . Follow-up Attacks . | . . . . Damage Inflicted 1081 | . 614 398 69 Guns 603 | . 580 23 . Cannons 17 | . . 17 . Explosions 453 | . 34 350 69 Melee . | . . . . Ramming 8 | . . 8 . Kinetic 17 | . . 17 . Thermal 307 | . 250 57 . Explosive 385 | . . 316 69 Electromagnetic 364 | . 364 . . Impact . | . . . . Slashing . | . . . . Piercing . | . . . . Highest Corruption 10 | . . . 10 Average Corruption 10 | . . . 10 Corruption Purged . | . . . . Corruption Blocked . | . . . . Effects 1 | . . . 1 Misfires 1 | . . . 1 Overload Shots . | . . . . Overflow Damage 14 | . . 14 . Projectiles . | . . . . Explosions 14 | . . 14 . Melee . | . . . . Knockbacks 1 | . . 1 . Impact . | . . . . Kinetic 1 | . . 1 . Secondary . | . . . . Self-Inflicted Damage 67 | . . 28 39 Shots 3 | . . 1 2 Rammed . | . . . . Targets Rammed 3 | . . 3 . Kicked 3 | . . 3 . Crushed . | . . . . Highest Temperature 283 | . 283 124 . Average Temperature 64 | . 67 54 . Received Heat Transfer 309 | . 165 144 . Siege Activations . | . . . . Martial Activations . | . . . . Shielding Activations . | . . . . Robots Disrupted . | . . . . Combat Hostiles . | . . . . Robots Corrupted . | . . . . Combat Hostiles . | . . . . Parts Fried . | . . . . Impact Corruptions . | . . . . Robots Melted . | . . . . Combat Hostiles . | . . . . Parts Melted 1 | . 1 . . Heat Transferred 650 | . 550 100 . Parts Sabotaged . | . . . . Parts Stolen . | . . . . Parts Stripped . | . . . . Power Chain Reactions 1 | . 1 . . Alert | -11 -10 -10 -10 ------- Run | Yrd Mat Min Sub Maximum Alert Level . | . . . . Low Security (%) 100 | 100 100 100 . Level 1 . | . . . . Level 2 . | . . . . Level 3 . | . . . . Level 4 . | . . . . Level 5 . | . . . . High Security . | . . . . Max Security . | . . . . Peak Influence 136 | . 136 45 . Initial 18 | . . 18 . Average 44 | . 63 8 . Influence Increases 489 | . 369 120 . Destroy 0b10 Robot/C 260 | . 220 40 . Destroy 0b10 Robot/NC 20 | . 15 5 . Destroy Leader 54 | . 44 10 . Successful Hack 12 | . 12 . . Disable Machine 30 | . . 30 . Destroy Structure 38 | . 3 35 . Lose Combat Pursuer 75 | . 75 . . Influence Decreases 489 | . 320 169 . Entered New Map 31 | . . 31 . Time Decay 410 | . 310 100 . Lost Part 48 | . 10 38 . Squads Dispatched 3 | . 3 . . Investigation 2 | . 2 . . Extermination . | . . . . Reinforcement 1 | . 1 . . Assault . | . . . . Garrison . | . . . . Intercept . | . . . . Searches Triggered . | . . . . Construction Impeded . | . . . . Haulers Reinforced . | . . . . Active Scanning Responses . | . . . . Cargo Convoy Interrupts . | . . . . Stealth | -11 -10 -10 -10 --------- Run | Yrd Mat Min Sub Distress Signals 2 | . 2 . . Communications Jammed . | . . . . Distress Signals . | . . . . Times Spotted 20 | . 18 2 . Peak Tracking Total 4 | . 4 2 . Tactical Retreats 2 | . 2 . . Traps | -11 -10 -10 -10 ------- Run | Yrd Mat Min Sub Traps Triggered . | . . . . Indirectly . | . . . . Trap Hack Attempts . | . . . . Triggered . | . . . . Disarmed 4 | . 4 . . Reprogrammed . | . . . . Reused . | . . . . Traps Extracted . | . . . . Installed . | . . . . Triggered . | . . . . Machines | -11 -10 -10 -10 ---------- Run | Yrd Mat Min Sub Machines Disabled 2 | . . 2 . Max in Single Turn 1 | . . 1 . Machines Repaired . | . . . . Machines Dismantled . | . . . . Machines Sabotaged . | . . . . Overloaded Fab Kills . | . . . . Hacking | -11 -10 -10 -10 --------- Run | Yrd Mat Min Sub Machines Accessed 4 | . 4 . . Terminals 3 | . 3 . . Fabricators . | . . . . Repair Stations . | . . . . Recycling Units 1 | . 1 . . Scanalyzers . | . . . . Garrison Access . | . . . . Total Hacks 11 | . 11 . . Successful 3 | . 3 . . Failed 8 | . 8 . . Catastrophic . | . . . . Database Lockouts . | . . . . Manual 13 | . 13 . . Terminals 8 | . 8 . . Fabricators . | . . . . Repair Stations . | . . . . Recycling Units 3 | . 3 . . Scanalyzers . | . . . . Garrison Access . | . . . . Terminal Hacks 1 | . 1 . . Disarm Traps 1 | . 1 . . Fabricator Hacks . | . . . . Repair Station Hacks . | . . . . Recycling Unit Hacks . | . . . . Scanalyzer . | . . . . Garrison Access Hacks . | . . . . Unauthorized Hacks 2 | . 2 . . Terminals 1 | . 1 . . Botnet 1 | . 1 . . Fabricators . | . . . . Repair Stations . | . . . . Recycling Units 1 | . 1 . . Recyclers 1 | . 1 . . Scanalyzers . | . . . . Garrison Access . | . . . . Data Cores Recovered . | . . . . Used . | . . . . Hacking Detections 5 | . 5 . . Full Trace Events 4 | . 4 . . Feedback Events . | . . . . Feedback Blocked . | . . . . Robot Schematics Acquired . | . . . . Robots Built . | . . . . Authchips . | . . . . Time . | . . . . Total Robot Build Rating . | . . . . Part Schematics Acquired . | . . . . Parts Built . | . . . . Authchips . | . . . . Time . | . . . . Total Part Build Rating . | . . . . Part Studies Acquired . | . . . . Parts Repaired . | . . . . Time . | . . . . Parts Recycled . | . . . . Recycled Matter . | . . . . Retrieved Matter . | . . . . Retrieved Components . | . . . . Parts Scanalyzed . | . . . . Part Schematics Acquired . | . . . . Parts Damaged . | . . . . Bothacking | -11 -10 -10 -10 ------------ Run | Yrd Mat Min Sub Used RIF Installer . | . . . . Robots Hacked . | . . . . Non-combat . | . . . . Combat . | . . . . Robot Hacks Applied . | . . . . Relay Couplers Released . | . . . . Fabnet Peak Effective % . | . . . . Robots Rewired . | . . . . Allies Hacked . | . . . . Hacks Repelled . | . . . . Allies | -11 -10 -10 -10 -------- Run | Yrd Mat Min Sub Total Allies . | . . . . Largest Group . | . . . . Highest-Rated Group . | . . . . Highest-Rated Ally . | . . . . Total Orders . | . . . . Ally Attacks . | . . . . Total Damage . | . . . . Kills . | . . . . Allies Corrupted . | . . . . Allies Melted . | . . . . Intel | -11 -10 -10 -10 ------- Run | Yrd Mat Min Sub Active Infowar (turns) 413 | . . 394 19 Seismic 391 | . . 372 19 ECM 22 | . . 22 . Robot Analysis Total . | . . . . Derelict Logs Recovered 1 | . . 1 . Drone Launches . | . . . . Drone Recoveries . | . . . . Exploration | -11 -10 -10 -10 ------------- Run | Yrd Mat Min Sub Turns Passed 1595 | 23 897 448 227 Spaces Moved 988 | 31 545 328 84 Core 44 | 31 . 11 2 Treads . | . . . . Legs 944 | . 545 317 82 Wheels . | . . . . Hover . | . . . . Flight . | . . . . Fastest Speed 50 | 50 120 120 120 Average Speed 124 | 50 120 122 188 Slowest Speed 400 | 50 120 200 400 Overloaded Moves . | . . . . Propulsion Burnouts . | . . . . Robots Hopped . | . . . . Potential Cave-ins . | . . . . Cave-ins Triggered 1 | . . . 1 Exploration Rate (%) 29 | 3 62 49 5 Regions Visited 3 Branch Regions 2 Pre-discovered Areas . | . . . . Known Exits Taken . | . . . . Unknown Exits Taken 3 | 1 1 1 . Scrap Searched 1 | . . 1 . Spaces Dug . | . . . . Terrain Destroyed 72 | . 3 52 17 Melee . | . . . . Projectile . | . . . . AOE 72 | . 3 52 17 Terrain Rammed . | . . . . Walls Destroyed . | . . . . Machines Disabled . | . . . . Actions | -11 -10 -10 -10 --------- Run | Yrd Mat Min Sub Total 1240 | 37 707 355 141 Wait 141 | 2 103 3 33 Move 985 | 30 544 327 84 Hop . | . . . . Pick Up 21 | 5 9 4 3 Fast Attach . | . . . . Attach 15 | . 8 6 1 Detach 1 | . . 1 . Swap . | . . . . Drop 5 | . 1 . 4 Fire 69 | . 42 11 16 Melee . | . . . . Ram . | . . . . Kick 3 | . . 3 . Crush . | . . . . Escape Stasis . | . . . . Rewire . | . . . . Trap . | . . . . Miscellaneous . | . . . . Route ------- -11/Scrapyard -10/Materials -10/Mines -10/Subcaves History --------- Turn | Location | Event 5 | -11/Scrapyard | Discovered new exit (range 16) 24 | -11/Scrapyard | Entered Materials 269 | -10/Materials | Core integrity fell below 50% 301 | -10/Materials | Discovered new exit (range 12) 318 | -10/Materials | Build established: Mutant 921 | -10/Materials | Entered Mines 932 | -10/Mines | Core integrity fell below 20% 952 | -10/Mines | Discovered new exit (range 13) 978 | -10/Mines | Lost 5 parts (2n1u2w) 1183 | -10/Mines | Learned Materials garrison access intel 1369 | -10/Mines | Entered Subcaves 1370 | -10/Subcaves | Approached by a straggling Scientist 1591 | -10/Subcaves | Crushed by falling debris 1591 | -10/Subcaves | System corruption reached 10% 1596 | -10/Subcaves | Destroyed self with Mini Grenade Launcher Last Messages --------------- 0N-6T8(c): "I think it's somewhere southwest of here" 01556_ JK-K7O(u) tweaks Twisted Machinery. 0N-6T8(c): "I think it's somewhere southwest of here" 01591_ The unstable cave ceiling collapses. 01591_ Crushed by falling debris. 01591_ Lgt. Cannon destroyed. 01591_ System corrupted by crushing effect (+5). 01591_ Aluminum Leg destroyed. 01591_ System corrupted by crushing effect (+2). 01591_ Aluminum Leg destroyed. 01591_ System corrupted by crushing effect (+3). 01596_ System corrupted: FCS attempts to trigger Mni. Grenade Launcher. 01596_ System corrupted: Mni. Grenade Launcher misfires. [Achievement: Maybe Next Time I'll Detach My Launcher] 01596_ JK-K7O(u) cries out in pain. [Achievement: Art Critic] 01596_ JK-K7O(u) destroyed. Map ----- +----------------------------------------------------+ | | | | | | | | | | | | | | | ?????????????????????????????????????????????????? | | ?????????????????????????????????????????????????? | | ?????????????????????????????????????????????????? | | ?????????????????????????????????????????????????? | | ?????????????????????????????????????????????????? | | ?????????????????????????????????????????????????? | | ?????????????????????????????????????????????????? | | ??????????#??????????????????????????????????????? | | ??????????# ?????????????????????????????????????? | | ??????????#""#???????###?????????????????????????? | | ???????????? $$?#####""??????????????????????????? | | ?????????????? # ???????????????????????????? | | ???????????????? ##???????????????????????????? | | ????????????????## #?####??????????????????????? | | ??????????##??###< <### ###???##???????????????? | | ??????????# ### < # ##?# ###?????????????? | | ?????????## ## ""##????????????? | | ?????# ## ### c #????????????? | | ????# #?# @ =%| #????????????? | | ???# #### ### ##?# h ##????????????? | | ???##????# #?###??## ####?????????????? | | ???????? #??????# #### "##????????????????? | | ?????? #######??????## ## # "#?????????????????? | | ?????##?????????????### "#?????????????????? | | ?????????????????##?# # #?????????????????? | | ????????????????## ## ######?????????????????? | | ????????????????# ##??????????????????????? | | ????????????????# ##?????????????????????? | | ????????????????## ##????????????????????? | | ?????????????????# #????????????????????? | | ?????????????????# ! #????????????????????? | | ?????????????????# ! ######????????????????????? | | ?????????????????# ##?????????????????????????? | | ?????????????????# ##??????????????????????????? | | ?????????????????# ###???????????????????????????? | | ?????????????????##??????????????????????????????? | | ?????????????????????????????????????????????????? | | ?????????????????????????????????????????????????? | | ?????????????????????????????????????????????????? | | ?????????????????????????????????????????????????? | | ?????????????????????????????????????????????????? | | ?????????????????????????????????????????????????? | | ?????????????????????????????????????????????????? | +----------------------------------------------------+ Best States ------------- Heat Dissipation 25 Energy Generation 10 Energy Capacity 250 Matter Stores 300 Matter Capacity 300 Sight Range 16 Terrain Scan Density 10 ECM Strength 1 Armor Coverage 800 Utility Shielding 33 Weapon Shielding 33 Evasion (%) 55 Item Schematics ----------------- None Robot Schematics ------------------ None Fabricated ------------ Nothing Repaired ---------- Nothing Studied --------- None Alien Tech Used ----------------- None Achievements -------------- Art Critic Maybe Next Time I'll Detach My Launcher Challenges ------------ None Game ------ Seed SignalMatterHammer Manual? 0 Play Time 00:16:03 Cumulative 19.2 hours Start 2026.04.12 @ 23:04:00 End 2026.04.12 @ 23:17:21 Sessions 1 Manual Loads 0 Difficulty Rogue Special Mode None Game No. 41 Rogue 21 Adventurer 0 Explorer 20 Win Type - Total 0 Types 0/0/0/0/0/0/0/0/0/0 Lore% 5 Gallery% 18 Achievement% 13 Wizard Run 0 Options --------- Layout 1 ASCII 0 Keyboard 0 Movement Mouse Keybinds 0 Fullscreen 1 Font 16/SmallcapsGlow Map View 55x38 Zoom Use 0% Tactical HUD 1 Map Filters NONE Filters NONE Steam 1 RUN: 8d13ab14-25d5-493e-ab9e-b83c5e2a2806